bitfinex-derivatives/quotes_BNBF0:USTF0_20250315
["timestamp","ask_amount","ask_price","bid_price","bid_amount"]
[1742076286101,0.02,618.97,618.04,0.32360365]
[1742076286301,0.02,618.97,618.05,0.91014813]
[1742076286494,0.02,618.97,618.06,0.91014813]
[1742076286698,0.02,618.97,618.07,0.91014813]
[1742076286896,0.02,618.97,618.08,0.91014813]
[1742076287100,0.02,618.97,618.09,0.91014813]
[1742076287398,0.02,618.97,618.1,0.91014813]
[1742076287601,0.02,618.97,618.11,0.91014813]
[1742076287795,0.02,618.97,618.12,0.91014813]
[1742076287999,0.02,618.97,618.13,0.91014813]
[1742076288201,0.02,618.97,618.14,0.91014813]
[1742076288397,0.02,618.97,618.15,0.91014813]
[1742076288602,0.02,618.97,618.16,0.91014813]
[1742076288799,0.02,618.97,618.17,0.91014813]
[1742076289001,0.02,618.97,618.16,1.03037066]
[1742076289707,0.02,618.97,617.51,0.28138038]
[1742076290007,0.02,618.97,617.74,1.94082413]
[1742076290306,0.02,618.97,617.75,0.91025361]
[1742076290506,0.02,618.97,617.76,1.94082413]
[1742076290711,0.02,618.97,617.77,0.91025361]
[1742076291001,0.02,618.97,617.78,0.91025361]
[1742076291204,0.02,618.97,617.79,0.91025361]
[1742076291403,0.02,618.97,617.8,0.91025361]
[1742076291606,0.02,618.97,617.81,0.91025361]
[1742076291806,0.02,618.97,617.82,0.91025361]
[1742076292104,0.02,618.97,617.83,0.91025361]
[1742076292308,0.02,618.97,617.84,0.91025361]
[1742076292507,0.02,618.97,617.85,0.91025361]
[1742076292708,0.02,618.97,617.86,0.91025361]
[1742076292908,0.02,618.97,617.87,0.91025361]
[1742076293103,0.02,618.97,617.88,0.91025361]
[1742076293302,0.02,618.97,617.89,0.91025361]
[1742076293607,0.02,618.97,617.37,0.637]
[1742076293608,0.02,618.97,617.9,1.94082413]
[1742076293808,0.02,618.97,617.91,0.91025361]
[1742076294013,0.02,618.97,617.92,0.91025361]
[1742076294212,0.02,618.97,617.93,0.91025361]
[1742076294415,0.02,618.97,617.94,0.91025361]
[1742076294713,0.02,618.97,617.95,0.91025361]
[1742076294914,0.02,618.97,617.94,1.03057052]
[1742076294915,0.02,618.97,617.96,0.91025361]
[1742076295214,0.02,618.97,617.97,1.94082413]
[1742076295409,0.02,618.97,617.98,0.90789619]
[1742076295615,0.02,618.97,617.99,0.90789619]
[1742076295915,0.02,618.97,618.0,0.90789619]
[1742076296621,0.02,618.97,618.01,1.03057052]
[1742076296914,0.02,618.97,618.02,0.90789619]
[1742076297114,0.02,618.97,617.51,0.28142475]
[1742076297314,0.02,618.97,617.74,0.9077339]
[1742076297514,0.02,618.97,617.75,0.9077339]
[1742076297913,0.02,618.97,617.76,1.93533313]
[1742076298113,0.02,618.97,617.77,0.9077339]
[1742076298312,0.02,618.97,617.78,0.9077339]
[1742076298511,0.02,618.97,617.79,0.9077339]
[1742076298714,0.02,618.97,617.8,0.9077339]
[1742076298915,0.02,618.97,617.81,0.9077339]
[1742076299116,0.02,618.97,617.82,0.9077339]
[1742076299313,0.02,618.97,617.83,0.906805]
[1742076299513,0.02,618.97,617.84,0.906805]
[1742076299713,0.02,618.97,617.85,0.90672533]
[1742076299917,0.02,618.97,617.86,0.90672533]
[1742076300111,0.02,618.97,617.87,0.90672533]
[1742076300311,0.02,618.97,617.88,0.90672533]
[1742076300514,0.02,618.97,617.89,0.90672533]
[1742076300717,0.02,618.97,617.9,0.90672533]
[1742076301015,0.02,618.97,617.91,0.90672533]
[1742076301216,0.02,618.97,617.92,0.90683506]
[1742076301412,0.02,618.97,617.93,0.90683506]
[1742076301619,0.02,618.97,617.94,0.90683506]
[1742076301918,0.02,618.97,617.95,0.90683506]
[1742076302217,0.02,618.97,617.92,1.02759923]
[1742076302218,0.02,618.97,617.96,0.90683506]
[1742076302413,0.02,618.97,617.97,0.90683506]
[1742076302616,0.02,618.97,617.98,0.90683506]
[1742076302918,0.02,618.97,617.99,0.90653125]
[1742076303120,0.02,618.97,617.59,0.72]
[1742076303322,0.02,618.97,617.6,1.52764449]
[1742076303621,0.02,618.97,617.61,1.23036]
[1742076303918,0.02,618.97,617.62,1.23035476]
[1742076304112,0.02,618.97,617.63,1.23034951]
[1742076304316,0.02,618.97,617.64,1.23034427]
[1742076304516,0.02,618.97,617.65,0.90653105]
[1742076304722,0.02,618.97,617.66,0.90653105]
[1742076305019,0.02,618.97,617.67,0.90653105]
[1742076305219,0.02,618.97,617.68,1.93284785]
[1742076305421,0.02,618.97,617.69,0.90653105]
[1742076305620,0.02,618.97,617.7,0.90653105]
[1742076305918,0.02,618.97,617.71,0.90653105]
[1742076306114,0.02,618.97,617.72,0.90653105]
[1742076306317,0.02,618.97,617.73,0.90653105]
[1742076306510,0.02,618.97,617.74,0.90653105]
[1742076306714,0.02,618.97,617.75,0.90653105]
[1742076306913,0.02,618.97,617.76,0.90653105]
[1742076307113,0.02,618.97,617.77,0.90653105]
[1742076307313,0.02,618.97,617.78,0.90653105]
[1742076307519,0.02,618.97,617.79,1.93284785]
[1742076307718,0.02,618.97,617.8,0.90653105]
[1742076307921,0.02,618.97,617.81,0.90653105]
[1742076308117,0.02,618.97,617.82,0.90653105]
[1742076308314,0.02,618.97,617.83,0.90653105]
[1742076308518,0.02,618.97,617.84,0.90653105]
[1742076308720,0.02,618.97,617.85,0.90653105]
[1742076308914,0.02,618.97,617.86,0.90653105]
[1742076309118,0.02,618.97,617.87,1.93284785]
[1742076309314,0.02,618.97,617.88,0.90653105]
[1742076309518,0.02,618.97,617.89,0.90653105]
[1742076309718,0.02,618.97,617.9,0.90653105]
[1742076310013,0.02,618.97,617.91,0.90653105]
[1742076310215,0.02,618.97,617.92,0.90653105]
[1742076310417,0.02,618.97,617.93,0.90653105]
[1742076310619,0.02,618.97,617.94,0.90653105]
[1742076310917,0.02,618.97,617.65,0.32380798]
[1742076310918,0.02,618.97,617.95,0.90653105]
[1742076311117,0.02,618.97,617.93,1.0263168]
[1742076311118,0.02,618.97,617.96,0.90653105]
[1742076311317,0.02,618.97,617.93,1.0263168]
[1742076311519,0.02,618.97,617.94,0.90610035]
[1742076311816,0.02,618.97,617.95,0.90610035]
[1742076312019,0.02,618.97,617.96,0.90610035]
[1742076312216,0.02,618.97,617.65,0.32380798]
[1742076312417,0.02,618.97,617.66,1.93206776]
[1742076312619,0.02,618.97,617.67,0.90611508]
[1742076312922,0.02,618.97,617.68,0.90611508]
[1742076313115,0.02,618.97,617.69,0.90611508]
[1742076313318,0.02,618.97,617.7,0.90611508]
[1742076313519,0.02,618.97,617.71,0.90611508]
[1742076313716,0.02,618.97,617.72,0.90611508]
[1742076313915,0.02,618.97,617.73,0.90611508]
[1742076314121,0.02,618.97,617.74,0.90611508]
[1742076314318,0.02,618.97,617.75,0.90611508]
[1742076314515,0.02,618.97,617.76,0.90611508]
[1742076314722,0.02,618.97,617.75,1.02595268]
[1742076314723,0.02,618.97,617.77,0.90611508]
[1742076314921,0.02,618.97,617.78,0.90611508]
[1742076315121,0.02,618.97,617.79,0.90611508]
[1742076315316,0.02,618.97,617.8,0.90611508]
[1742076315521,0.02,618.97,617.81,0.90611508]
[1742076315719,0.02,618.97,617.82,0.90611508]
[1742076315916,0.02,618.97,617.83,0.90611508]
[1742076316322,0.32312265,618.96,617.84,1.02595268]
[1742076316517,0.32312265,618.96,617.85,0.90611508]
[1742076317428,0.32312265,618.96,617.77,0.727]
[1742076317725,0.32312265,618.96,617.78,0.90628053]
[1742076317929,0.32312265,618.96,617.79,0.90628053]
[1742076318123,0.32312265,618.96,617.78,1.02617055]
[1742076318723,0.32312265,618.96,617.77,0.727]
[1742076320426,0.32312265,618.96,617.77,1.52]
[1742076321126,0.28157618,618.95,617.77,1.52]
[1742076321326,0.32313831,618.93,617.77,1.52]
[1742076324023,0.28158415,618.92,617.77,1.52]
[1742076324228,0.32315398,618.9,617.77,1.52]
[1742076329428,0.32315398,618.9,617.77,2.305]
[1742076330230,0.32315398,618.9,617.77,3.087]
[1742076333935,0.32315398,618.9,617.77,3.816]
[1742076334437,0.32315398,618.9,617.78,0.90577051]
[1742076334636,0.32315398,618.9,617.79,0.90577051]
[1742076334838,0.32315398,618.9,617.8,0.90577051]
[1742076335038,0.32315398,618.9,617.81,0.90577051]
[1742076335234,0.32315398,618.9,617.77,3.816]
[1742076335235,0.32315398,618.9,617.82,0.90577051]
[1742076335436,0.32315398,618.9,617.83,0.90577051]
[1742076336040,0.32315398,618.9,617.84,0.90577051]
[1742076336240,0.32315398,618.9,617.77,3.816]
[1742076336440,0.32315398,618.9,617.78,0.90643276]
[1742076336642,0.32315398,618.9,617.79,0.90643276]
[1742076336841,0.32315398,618.9,617.8,0.90643276]
[1742076337533,0.32315398,618.9,617.81,1.02634853]
[1742076337738,0.32315398,618.9,617.82,0.90643276]
[1742076338134,0.32315398,618.9,617.81,1.02634853]
[1742076338135,0.32315398,618.9,617.83,0.90677364]
[1742076338435,0.32315398,618.9,617.84,1.93312217]
[1742076338633,0.32315398,618.9,617.85,0.90677364]
[1742076339038,0.32315398,618.9,617.86,1.02634853]
[1742076339837,0.32315398,618.9,617.78,1.02634853]
[1742076340141,0.32315398,618.9,617.79,0.90697318]
[1742076340336,0.32315398,618.9,617.8,0.90697318]
[1742076340542,0.32315398,618.9,617.81,0.90697318]
[1742076340741,0.32315398,618.9,617.82,1.93332171]
[1742076340940,0.32315398,618.9,617.83,0.90697318]
[1742076341635,0.32315398,618.9,617.84,1.02634853]
[1742076341838,0.32315398,618.9,617.85,0.90697318]
[1742076342038,0.32315398,618.9,617.86,0.90723622]
[1742076342236,0.32315398,618.9,617.87,0.90734799]
[1742076342437,0.32315398,618.9,617.86,1.02634853]
[1742076342640,0.32315398,618.9,617.88,0.718]
[1742076343844,0.32315398,618.9,617.89,0.603]
[1742076344443,0.32315398,618.9,617.9,0.651]
[1742076344846,0.32315398,618.9,617.9,1.178]
[1742076345841,0.423,618.89,617.9,1.178]
[1742076346450,0.423,618.89,617.91,0.90821157]
[1742076346748,0.423,618.89,617.92,0.90821157]
[1742076346947,0.423,618.89,617.9,1.178]
[1742076347142,0.423,618.89,617.91,0.90819685]
[1742076347349,0.423,618.89,617.92,1.93675885]
[1742076347549,0.423,618.89,617.93,0.90819685]
[1742076347945,0.423,618.89,617.9,1.178]
[1742076348145,0.423,618.89,617.91,0.90838971]
[1742076348350,0.423,618.89,617.92,0.90838971]
[1742076348544,0.423,618.89,617.93,0.90838971]
[1742076348762,0.423,618.89,617.94,0.90838971]
[1742076348962,0.423,618.89,617.95,0.90838971]
[1742076349165,0.767,618.88,617.9,1.178]
[1742076349467,0.767,618.88,617.91,0.90850884]
[1742076349668,0.767,618.88,617.92,0.90850884]
[1742076349867,0.767,618.88,617.93,0.90850884]
[1742076350061,0.767,618.88,617.94,0.90850884]
[1742076350259,0.767,618.88,617.95,0.90856718]
[1742076350465,0.767,618.88,617.9,1.178]
[1742076350766,0.767,618.88,617.91,0.90859025]
[1742076350967,0.767,618.88,617.92,0.90859025]
[1742076351166,0.767,618.88,617.9,1.178]
[1742076351366,0.767,618.88,617.91,0.90871188]
[1742076351666,0.767,618.88,617.9,1.178]
[1742076351865,0.767,618.88,617.91,1.57677304]
[1742076352066,0.767,618.88,617.91,0.668]
[1742076352265,0.767,618.88,617.92,0.9088738]
[1742076352465,0.767,618.88,617.91,0.668]
[1742076352667,0.767,618.88,617.92,0.90887758]
[1742076352866,0.767,618.88,617.91,0.668]
[1742076353068,0.767,618.88,617.92,0.90887475]
[1742076353265,0.767,618.88,617.93,0.90887475]
[1742076353468,0.767,618.88,617.91,0.668]
[1742076353665,0.767,618.88,617.92,0.90884091]
[1742076353867,0.767,618.88,617.91,0.668]
[1742076354270,0.767,618.88,617.92,0.90884963]
[1742076354467,0.767,618.88,617.91,0.668]
[1742076354671,0.767,618.88,617.92,0.90890479]
[1742076354869,0.767,618.88,617.91,0.668]
[1742076355071,0.767,618.88,617.92,0.90887591]
[1742076355271,0.767,618.88,617.91,0.668]
[1742076355468,0.767,618.88,617.92,0.90899397]
[1742076355673,0.767,618.88,617.91,0.668]
[1742076355674,0.767,618.88,617.93,0.90899397]
[1742076355872,0.767,618.88,617.91,0.668]
[1742076356174,0.767,618.88,617.92,0.90892875]
[1742076356473,0.767,618.88,617.93,1.93793558]
[1742076356673,0.767,618.88,617.94,0.90892875]
[1742076356869,0.767,618.88,617.95,0.90892875]
[1742076357070,0.767,618.88,617.96,0.90892875]
[1742076357270,0.767,618.88,617.97,0.90892875]
[1742076357572,0.767,618.88,617.98,0.90892875]
[1742076357873,0.767,618.88,617.99,0.90892875]
[1742076358071,0.767,618.88,617.91,0.668]
[1742076358276,0.767,618.88,617.92,0.90881884]
[1742076358477,0.767,618.88,617.93,0.90881884]
[1742076358671,0.767,618.88,617.94,0.90881884]
[1742076358872,0.767,618.88,617.95,0.90881884]
[1742076359071,0.767,618.88,617.96,0.90881884]
[1742076359276,0.767,618.88,617.97,0.90881884]
[1742076360079,0.767,618.88,617.98,0.90889008]
[1742076360279,0.423,618.89,617.91,0.668]
[1742076360579,0.423,618.89,617.92,1.93784977]
[1742076360779,0.423,618.89,617.93,0.9088326]
[1742076360972,0.423,618.89,617.94,0.9088326]
[1742076361176,0.423,618.89,617.95,0.9088326]
[1742076361474,0.423,618.89,617.94,1.02901717]
[1742076361679,0.423,618.89,617.95,0.90893433]
[1742076361873,0.423,618.89,617.96,0.90893433]
[1742076362073,0.423,618.89,617.97,0.90893433]
[1742076362273,0.423,618.89,617.91,0.668]
[1742076362478,0.423,618.89,617.92,0.90893919]
[1742076362680,0.423,618.89,617.93,0.90893919]
[1742076362681,0.535,618.88,617.93,0.90893919]
[1742076362875,0.535,618.88,617.94,0.90893919]
[1742076363080,0.535,618.88,617.95,0.90893919]
[1742076363281,0.535,618.88,617.96,0.90893919]
[1742076363483,0.535,618.88,617.97,0.90893919]
[1742076363681,0.684,618.87,617.97,0.90893919]
[1742076364081,0.684,618.87,617.98,0.90893919]
[1742076364281,0.684,618.87,617.99,0.90893919]
[1742076364581,0.684,618.87,617.91,0.668]
[1742076364781,0.684,618.87,617.92,0.90897189]
[1742076364980,0.684,618.87,617.93,0.90897189]
[1742076365281,0.684,618.87,617.94,0.90897189]
[1742076365482,0.684,618.87,617.95,0.90897189]
[1742076365779,0.684,618.87,617.96,0.90897189]
[1742076365976,0.684,618.87,617.97,0.90897189]
[1742076366175,0.684,618.87,617.98,0.90897189]
[1742076366376,0.684,618.87,617.99,0.90897189]
[1742076366583,0.684,618.87,617.99,0.761]
[1742076366977,0.684,618.87,618.0,0.90905281]
[1742076367180,0.684,618.87,618.01,0.90905281]
[1742076367380,0.684,618.87,617.99,0.761]
[1742076367577,0.684,618.87,618.0,0.90920148]
[1742076367778,0.684,618.87,617.99,0.761]
[1742076367982,0.684,618.87,618.0,0.90924729]
[1742076368278,0.684,618.87,617.99,0.761]
[1742076368585,0.684,618.87,618.0,0.90932831]
[1742076368783,0.684,618.87,617.99,0.761]
[1742076369582,0.684,618.87,618.0,1.50934056]
[1742076369786,0.684,618.87,618.0,0.6]
[1742076373686,0.684,618.87,618.01,0.678]
[1742076374387,0.684,618.87,618.02,0.761]
[1742076377289,0.684,618.87,618.03,0.9092976]
[1742076377490,0.684,618.87,618.04,0.9092976]
[1742076377690,0.684,618.87,618.05,0.90908903]
[1742076377888,0.684,618.87,618.02,0.761]
[1742076378091,0.684,618.87,618.03,0.90913854]
[1742076378291,0.684,618.87,618.04,0.90913854]
[1742076378590,0.423,618.86,618.05,0.9091432]
[1742076378791,0.423,618.86,618.02,0.761]
[1742076378991,0.423,618.86,618.03,0.90918431]
[1742076379190,0.423,618.86,618.04,0.90918431]
[1742076379395,0.423,618.86,618.05,0.90900561]
[1742076379594,0.423,618.86,618.02,0.761]
[1742076379892,0.423,618.86,618.03,0.90904237]
[1742076380194,0.423,618.86,618.04,0.90904237]
[1742076380391,0.423,618.86,618.05,0.90903278]
[1742076380693,0.423,618.86,618.02,0.761]
[1742076380894,0.423,618.86,618.03,0.90913235]
[1742076381094,0.423,618.86,618.04,0.90913235]
[1742076381287,0.423,618.86,618.05,0.90924091]
[1742076381491,0.474,618.85,618.06,0.90911732]
[1742076381690,0.474,618.85,618.02,0.761]
[1742076381891,0.474,618.85,618.03,0.9091571]
[1742076382092,0.474,618.85,618.04,0.9091571]
[1742076382292,0.474,618.85,618.05,0.9091571]
[1742076382493,0.474,618.85,618.06,0.9091571]
[1742076382693,0.474,618.85,618.02,0.761]
[1742076382994,0.474,618.85,618.03,0.90918453]
[1742076383189,0.474,618.85,618.04,0.90918453]
[1742076383392,0.474,618.85,618.05,0.90918453]
[1742076383589,0.474,618.85,618.06,0.90918453]
[1742076383789,0.474,618.85,618.07,0.90933377]
[1742076383994,0.474,618.85,618.04,1.02941796]
[1742076384294,0.474,618.85,618.02,0.761]
[1742076384295,0.474,618.85,618.05,0.90933496]
[1742076384595,0.474,618.85,618.06,1.93905947]
[1742076384895,0.474,618.85,618.07,0.90933496]
[1742076385194,0.474,618.85,618.08,0.90933496]
[1742076385398,0.474,618.85,618.09,0.90933496]
[1742076385594,0.474,618.85,618.1,0.90933496]
[1742076385794,0.548,618.84,618.11,0.90933496]
[1742076385992,0.548,618.84,618.12,0.90933496]
[1742076386193,0.548,618.84,618.13,0.90933496]
[1742076386393,0.548,618.84,618.14,0.90933496]
[1742076386695,0.548,618.84,618.15,1.93905947]
[1742076386896,0.548,618.84,618.16,0.90933496]
[1742076387094,0.548,618.84,618.17,0.90933496]
[1742076387395,0.548,618.84,618.18,0.90933496]
[1742076387595,0.548,618.84,618.19,0.90933496]
[1742076387797,0.548,618.84,618.17,1.02972451]
[1742076388095,0.548,618.84,618.18,0.90908328]
[1742076388293,0.548,618.84,618.19,0.90924358]
[1742076388491,0.548,618.84,618.01,0.678]
[1742076388694,0.548,618.84,618.02,0.90923308]
[1742076388893,0.548,618.84,618.03,0.90923308]
[1742076389091,0.548,618.84,618.04,0.90923308]
[1742076389395,0.548,618.84,618.05,1.93866941]
[1742076389597,0.548,618.84,618.06,0.90923308]
[1742076389798,0.548,618.84,618.07,0.90923308]
[1742076389998,0.548,618.84,618.08,0.90923308]
[1742076390199,0.548,618.84,618.09,0.90923308]
[1742076390498,0.548,618.84,618.1,0.90923308]
[1742076390699,0.548,618.84,618.11,0.90923308]
[1742076390893,0.548,618.84,618.12,0.90923308]
[1742076391098,0.548,618.84,618.13,0.90923308]
[1742076391399,0.548,618.84,618.14,0.90923308]
[1742076391593,0.548,618.84,618.15,0.90923308]
[1742076391792,0.548,618.84,618.16,0.90923308]
[1742076391993,0.548,618.84,618.05,0.566]
[1742076392192,0.548,618.84,618.06,0.90972931]
[1742076392393,0.548,618.84,618.07,0.90972931]
[1742076392698,0.548,618.84,618.08,0.90972931]
[1742076392898,0.548,618.84,618.07,1.02996967]
[1742076392899,0.548,618.84,618.09,0.90972931]
[1742076393099,0.548,618.84,618.1,0.90972931]
[1742076393298,0.548,618.84,618.11,0.90972931]
[1742076393496,0.548,618.84,618.12,0.90972931]
[1742076393693,0.548,618.84,618.13,0.90972931]
[1742076393897,0.548,618.84,618.14,0.90972931]
[1742076394097,0.548,618.84,618.15,0.90972931]
[1742076394394,0.548,618.84,618.16,0.90972931]
[1742076394599,0.548,618.84,618.16,1.02996967]
[1742076395200,0.548,618.84,618.17,0.90914194]
[1742076395398,0.548,618.84,618.16,1.02996967]
[1742076395598,0.548,618.84,618.18,0.90911624]
[1742076395799,0.548,618.84,618.17,0.90911624]
[1742076396100,0.548,618.84,618.16,1.02996967]
[1742076396292,0.548,618.84,618.17,0.613]
[1742076396894,0.548,618.84,618.18,0.90901843]
[1742076397101,0.548,618.84,618.19,0.90901843]
[1742076397299,0.548,618.84,618.2,0.90901843]
[1742076397501,0.548,618.84,618.21,0.90901843]
[1742076397701,0.548,618.84,618.2,1.02996967]
[1742076398304,0.548,618.84,618.17,0.613]
[1742076400002,0.548,618.84,618.17,1.118]
[1742076400502,0.692,618.83,618.17,1.118]
[1742076403900,0.692,618.83,618.17,2.319]
[1742076407604,1.244,618.83,618.17,2.319]
[1742076408010,1.667,618.83,618.17,2.319]
[1742076418720,1.667,618.83,618.17,3.014]
[1742076419315,1.667,618.83,618.17,3.699]
[1742076426728,1.667,618.83,618.18,0.90959184]
[1742076426924,1.667,618.83,618.19,0.90959184]
[1742076427127,1.667,618.83,618.2,0.90959184]
[1742076427325,1.667,618.83,618.21,0.90959184]
[1742076427523,1.667,618.83,618.22,0.90959184]
[1742076427724,1.667,618.83,618.23,0.90959184]
[1742076428029,1.667,618.83,618.24,0.90959184]
[1742076428230,1.667,618.83,618.25,0.90959184]
[1742076428431,1.667,618.83,618.26,0.90959184]
[1742076428631,1.667,618.83,618.26,1.02970774]
[1742076429330,1.667,618.83,618.27,1.02970774]
[1742076429530,1.667,618.83,618.17,1.898]
[1742076429731,0.32315398,618.9,618.18,0.90905874]
[1742076429931,0.32315398,618.9,618.19,0.90905874]
[1742076430127,0.32315398,618.9,618.2,0.90905874]
[1742076430334,0.32315398,618.9,618.21,0.90905874]
[1742076430532,0.32315398,618.9,618.22,0.90905874]
[1742076430730,0.32315398,618.9,618.23,1.93827833]
[1742076430930,0.02,618.97,618.24,0.90905874]
[1742076431125,0.02,618.97,618.25,0.90905874]
[1742076431332,0.02,618.97,618.26,1.93827833]
[1742076431527,0.02,618.97,618.27,0.90905874]
[1742076431725,0.02,618.97,618.28,1.93827833]
[1742076431931,0.02,618.97,618.29,0.90905874]
[1742076432130,0.02,618.97,618.3,0.90861946]
[1742076432326,0.02,618.97,618.23,0.607]
[1742076432530,0.02,618.97,618.24,0.90844224]
[1742076432729,0.775,618.96,618.25,1.93696426]
[1742076432934,1.198,618.96,618.26,0.90844224]
[1742076433233,1.198,618.96,618.27,1.93696426]
[1742076433435,0.643,618.95,618.27,1.02852202]
[1742076433734,0.643,618.95,618.28,0.90826055]
[1742076433935,0.643,618.95,618.23,0.607]
[1742076434234,0.643,618.95,618.24,0.90825983]
[1742076434534,0.643,618.95,618.25,1.93647631]
[1742076434729,0.643,618.95,618.26,0.90825983]
[1742076435034,0.643,618.95,618.27,0.90817839]
[1742076435229,0.643,618.95,618.28,0.90817839]
[1742076435427,0.643,618.95,618.29,0.90817839]
[1742076435628,0.643,618.95,618.3,0.90796194]
[1742076435831,0.643,618.95,618.31,0.90796194]
[1742076436031,0.643,618.95,618.32,0.90796194]
[1742076436231,0.643,618.95,618.25,1.092]
[1742076436428,0.643,618.95,618.26,0.90793487]
[1742076436629,0.643,618.95,618.27,0.90793487]
[1742076436831,0.643,618.95,618.25,1.092]
[1742076436832,0.643,618.95,618.28,0.90777115]
[1742076437032,0.643,618.95,618.29,0.90777115]
[1742076437232,0.643,618.95,618.3,0.90777115]
[1742076437432,0.643,618.95,618.29,1.02767854]
[1742076437433,0.643,618.95,618.31,0.90777115]
[1742076437634,0.643,618.95,618.32,0.90777115]
[1742076437930,0.643,618.95,618.25,1.092]
[1742076438130,0.643,618.95,618.26,0.90759979]
[1742076438333,0.643,618.95,618.27,0.90759979]
[1742076438532,0.643,618.95,618.26,1.02756776]
[1742076438533,0.643,618.95,618.28,0.90759979]
[1742076438833,0.643,618.95,618.29,0.90759979]
[1742076439038,0.643,618.95,618.3,0.90759979]
[1742076439233,0.643,618.95,618.31,0.90759979]
[1742076439433,0.643,618.95,618.25,1.092]
[1742076439732,0.643,618.95,618.26,0.90730384]
[1742076439935,0.643,618.95,618.27,1.93450182]
[1742076440126,0.643,618.95,618.28,0.90730384]
[1742076440331,0.643,618.95,618.29,0.90730384]
[1742076440528,0.643,618.95,618.3,0.90730384]
[1742076440732,0.643,618.95,618.31,0.90730384]
[1742076440934,0.643,618.95,618.25,1.092]
[1742076441136,0.643,618.95,618.26,0.90711082]
[1742076441335,0.643,618.95,618.27,0.90711082]
[1742076441635,0.643,618.95,618.28,0.90711082]
[1742076441934,0.643,618.95,618.29,0.90711082]
[1742076442133,0.643,618.95,618.3,0.90711082]
[1742076442330,0.643,618.95,618.25,1.092]
[1742076450246,0.643,618.95,618.27,0.76]
[1742076450648,0.643,618.95,618.28,0.90667816]
[1742076450844,0.643,618.95,618.27,0.76]
[1742076452645,0.643,618.95,618.28,0.90586485]
[1742076452847,0.643,618.95,618.29,0.90586485]
[1742076453044,0.643,618.95,618.27,0.76]
[1742076456951,0.643,618.95,618.27,1.273]
[1742076459854,1.066,618.95,618.27,1.273]
[1742076461853,1.066,618.95,618.28,0.90629167]
[1742076462054,1.066,618.95,618.27,1.273]
[1742076462758,1.066,618.95,618.27,1.895]
[1742076463856,1.066,618.95,618.28,0.9062659]
[1742076464054,1.066,618.95,618.27,2.692]
[1742076464254,1.066,618.95,618.28,0.90627482]
[1742076464457,1.066,618.95,618.27,2.692]
[1742076464958,1.66,618.95,618.28,0.9061886]
[1742076465251,1.66,618.95,618.29,0.9061886]
[1742076465457,1.66,618.95,618.27,2.692]
[1742076465658,1.66,618.95,618.28,0.90616408]
[1742076465958,1.66,618.95,618.27,2.692]
[1742076466158,1.66,618.95,618.28,0.90612829]
[1742076466358,1.66,618.95,618.27,2.692]
[1742076466559,1.66,618.95,618.28,0.689]
[1742076467962,1.66,618.95,618.29,0.90590839]
[1742076468256,1.66,618.95,618.3,0.90597993]
[1742076468560,1.66,618.95,618.31,0.90597993]
[1742076468761,1.66,618.95,618.28,0.689]
[1742076468961,1.66,618.95,618.29,0.90589456]
[1742076469157,1.66,618.95,618.3,0.90589456]
[1742076469358,1.66,618.95,618.28,0.689]
[1742076469559,1.66,618.95,618.29,0.906052]
[1742076469758,1.66,618.95,618.3,0.906052]
[1742076469963,1.66,618.95,618.28,0.689]